bitfinex/quotes_ETHUSD_20220117
["timestamp","ask_amount","ask_price","bid_price","bid_amount"]
[1642396734334,0.6519319,3251.0,3250.4,17.99307374]
[1642396734534,0.6519319,3251.0,3250.5,19.74905]
[1642396734734,0.6519319,3251.0,3250.5,18.76155531]
[1642396734935,0.6519319,3251.0,3250.6,1.01193689]
[1642396735336,0.6519319,3251.0,3250.7,0.01136847]
[1642396735738,0.6519319,3251.0,3250.7,7.00360917]
[1642396736204,0.6519319,3251.0,3250.8,0.77978004]
[1642396736595,0.6519319,3251.0,3250.9,33.01023162]
[1642396741443,0.6519319,3251.0,3250.9,0.01023162]
[1642396741838,0.6519319,3251.0,3250.3,0.01364216]
[1642396742240,0.6519319,3251.0,3250.4,0.04879289]
[1642396742441,1.42545391,3250.9,3250.4,0.04879289]
[1642396742742,0.00738885,3250.8,3250.5,0.01250531]
[1642396743140,0.71451198,3250.4,3250.3,0.01364216]
[1642396743343,1.42545391,3250.9,3250.2,24.99990325]
[1642396743544,1.42545391,3250.9,3250.2,25.01411383]
[1642396743790,1.42545391,3250.9,3250.3,0.01364216]
[1642396744187,0.03882773,3250.8,3250.3,0.01364216]
[1642396744888,1.42545391,3250.9,3250.3,0.01364216]
[1642396745186,0.58628054,3250.4,3250.3,0.01364216]
[1642396745587,0.58628054,3250.4,3250.2,0.01421058]
[1642396745787,1.42545391,3250.9,3250.1,0.78391901]
[1642396745989,1.42545391,3250.9,3250.3,0.03484248]
[1642396746193,1.42545391,3250.9,3250.2,0.01421058]
[1642396746397,1.42545391,3250.9,3250.5,0.05913018]
[1642396746690,1.42545391,3250.9,3250.6,0.01193689]
[1642396746890,1.1259,3251.4,3250.6,0.01193689]
[1642396746891,0.6815379,3250.7,3250.6,0.01193689]
[1642396747091,1.1259,3251.4,3250.5,18.74904]
[1642396747534,0.3,3251.3,3250.6,0.01193689]
[1642396748137,1.55123576,3251.3,3250.7,0.01556387]
[1642396748337,0.03882773,3251.2,3250.6,0.01193689]
[1642396748535,0.03882773,3251.2,3250.5,0.76904]
[1642396748536,1.55123576,3251.3,3250.8,0.01080004]
[1642396748737,1.55123576,3251.3,3250.6,0.01193689]
[1642396749337,1.55123576,3251.3,3250.4,0.01307374]
[1642396749739,0.69301881,3251.2,3250.4,0.01307374]
[1642396749942,0.01048643,3251.1,3250.4,0.01307374]
[1642396750140,0.444,3251.0,3250.4,0.01307374]
[1642396750339,0.444,3251.0,3250.1,0.01477901]
[1642396750539,1.15645081,3250.2,3250.1,0.01477901]
[1642396750740,1.15645081,3250.2,3250.1,35.16477901]
[1642396750939,1.15645081,3250.2,3250.1,35.15]
[1642396751186,0.444,3250.8,3250.1,35.16477901]
[1642396751590,0.3,3251.1,3250.2,0.01421058]
[1642396751784,0.744,3251.2,3250.2,0.01421058]
[1642396752184,1.46694088,3250.8,3250.2,0.01421058]
[1642396752385,0.61588616,3250.5,3250.2,0.01421058]
[1642396752584,1.46694088,3250.8,3250.2,0.01421058]
[1642396752785,1.46694088,3250.8,3250.3,0.05913018]
[1642396753186,1.46694088,3250.8,3250.5,0.02075545]
[1642396753388,0.03882773,3250.7,3250.4,0.01307374]
[1642396753586,1.46694088,3250.8,3250.6,18.96193689]
[1642396753791,0.444,3251.2,3250.6,18.95]
[1642396753990,0.3,3251.3,3250.7,0.01136847]
[1642396754390,1.744,3251.6,3250.7,0.01136847]
[1642396754588,0.68790264,3251.2,3250.7,0.01136847]
[1642396755251,1.35183651,3251.4,3250.7,7.39837702]
[1642396755449,2.4776,3251.6,3250.7,7.39837702]
[1642396755649,0.3,3251.3,3250.8,0.01080004]
[1642396756051,1.4776,3251.6,3250.8,0.01080004]
[1642396756251,1.4776,3251.6,3250.7,6.8963727]
[1642396756452,1.4776,3251.6,3250.8,0.01241964]
[1642396756453,0.76523726,3251.4,3250.8,0.01241964]
[1642396756652,0.76523726,3251.4,3250.8,0.01080004]
[1642396756955,1.1776,3251.6,3250.8,0.01080004]
[1642396757554,1.1776,3251.6,3250.9,0.02388082]
[1642396757755,1.1776,3251.6,3250.9,26.57885372]
[1642396757953,0.62479712,3251.1,3251.0,0.0096632]
[1642396758786,3.7877,3251.7,3251.0,0.76892]
[1642396759187,3.7877,3251.7,3251.2,0.01164408]
[1642396759389,3.7877,3251.7,3251.1,0.00909477]
[1642396759594,3.7877,3251.7,3251.3,0.00795793]
[1642396759790,3.7877,3251.7,3251.1,6.86395005]
[1642396759791,0.72328488,3251.5,3251.1,6.87304482]
[1642396759990,0.72328488,3251.5,3251.2,0.00852635]
[1642396760589,0.72328488,3251.5,3251.1,6.85059044]
[1642396760992,0.72328488,3251.5,3251.2,0.00852635]
[1642396761392,0.72328488,3251.5,3251.0,0.0096632]
[1642396761593,0.03191691,3251.4,3251.0,0.0096632]
[1642396761792,0.72328488,3251.5,3251.3,2.63353411]
[1642396762198,0.72328488,3251.5,3251.4,27.7573895]
[1642396762434,1.1378,3252.1,3251.4,27.7573895]
[1642396762635,0.3,3252.1,3251.4,27.7573895]
[1642396762833,0.3,3252.1,3251.5,0.00682108]
[1642396763034,1.7688722,3252.6,3251.5,0.00682108]
[1642396763435,0.3,3252.5,3251.5,0.00682108]
[1642396764036,0.03807602,3251.7,3251.5,0.00682108]
[1642396764538,1.44163479,3252.1,3251.6,35.13863721]
[1642396764740,1.44163479,3252.1,3251.6,35.1]
[1642396764935,1.44163479,3252.1,3251.7,0.00568423]
[1642396765536,1.7688722,3252.6,3251.7,6.64758274]
[1642396765739,0.76889,3253.1,3251.8,0.0515522]
[1642396765740,5.1348,3252.7,3251.8,0.0515522]
[1642396765936,5.1348,3252.7,3251.8,0.00511581]
[1642396766198,5.1348,3252.7,3251.9,0.00454739]
[1642396766386,5.1348,3252.7,3251.8,0.00511581]
[1642396766588,5.1348,3252.7,3252.0,0.00397896]
[1642396766786,5.1348,3252.7,3251.9,7.18657796]
[1642396766787,0.70461205,3252.4,3251.9,7.18657796]
[1642396766987,1.00461205,3252.4,3251.9,0.00454739]
[1642396767186,1.00461205,3252.4,3252.0,0.00397896]
[1642396767391,1.00461205,3252.4,3251.9,0.77324739]
[1642396767587,1.00461205,3252.4,3252.0,0.00397896]
[1642396768087,1.00461205,3252.4,3252.1,0.01186835]
[1642396768389,0.02511267,3252.2,3251.9,0.7687]
[1642396768587,1.40567183,3252.3,3251.9,0.7687]
[1642396768786,1.40567183,3252.3,3252.0,6.77421532]
[1642396768988,1.40567183,3252.3,3252.0,0.00397896]
[1642396769288,1.40567183,3252.3,3252.1,0.00341054]
[1642396769940,1.40567183,3252.3,3251.9,0.00454739]
[1642396771338,1.00461205,3252.4,3251.9,17.98454739]
[1642396771537,1.00461205,3252.4,3252.0,6.7865873]
[1642396771737,0.01840438,3252.3,3252.0,6.7865873]
[1642396771936,0.70461205,3252.4,3252.1,0.00341054]
[1642396772541,0.01026419,3252.3,3252.1,0.00341054]
[1642396772740,0.70461205,3252.4,3251.9,0.00454739]
[1642396773238,0.70461205,3252.4,3252.0,0.05558438]
[1642396773699,0.70461205,3252.4,3252.1,0.00341054]
[1642396774092,0.70461205,3252.4,3252.0,7.79513645]
[1642396774493,0.70461205,3252.4,3252.1,0.00341054]
[1642396774494,1.00461205,3252.4,3252.1,0.00341054]
[1642396774696,0.02814469,3252.3,3252.1,0.00341054]
[1642396774896,1.00461205,3252.4,3251.7,0.00568423]
[1642396775099,1.00461205,3252.4,3251.7,6.85925009]
[1642396775295,1.00461205,3252.4,3251.7,0.00568423]
[1642396775496,1.00461205,3252.4,3251.6,35.1]
[1642396775497,0.64556116,3251.9,3251.8,0.00511581]
[1642396775695,0.64556116,3251.9,3251.8,27.75]
[1642396776096,0.64556116,3251.9,3251.8,27.75511581]
[1642396778547,0.59556116,3251.9,3251.8,0.00511581]
[1642396778946,0.59556116,3251.9,3251.5,0.00682108]
[1642396779145,0.59556116,3251.9,3251.3,0.00795793]
[1642396779346,0.89556116,3251.9,3251.3,0.00795793]
[1642396779747,1.12753424,3251.3,3251.0,0.0096632]
[1642396780046,0.56106312,3251.2,3251.0,0.0096632]
[1642396781686,0.56106312,3251.2,3251.1,37.73353885]
[1642396782087,0.56106312,3251.2,3251.1,37.74263362]
[1642396782287,0.56106312,3251.2,3251.1,35.10909477]
[1642396782895,0.56106312,3251.2,3251.1,0.00909477]
[1642396783290,0.56106312,3251.2,3250.7,0.01136847]
[1642396784692,0.03385012,3251.1,3250.7,0.01136847]
[1642396784937,0.56106312,3251.2,3250.7,0.01136847]
[1642396785338,0.03882773,3251.1,3250.7,0.01136847]
[1642396785542,0.56106312,3251.2,3250.7,0.01136847]
[1642396785939,0.56106312,3251.2,3250.8,0.03486271]
[1642396786339,0.56106312,3251.2,3251.0,0.01419786]
[1642396786738,0.56106312,3251.2,3251.1,19.35909477]
[1642396788893,1.5381284,3252.1,3251.1,19.35909477]
[1642396788894,1.1518,3251.7,3251.2,0.04531592]
[1642396789087,1.1518,3251.7,3251.1,19.35909477]
[1642396789088,1.4518,3251.7,3251.1,19.35909477]
[1642396789289,0.3,3251.7,3251.3,0.00795793]
[1642396789588,4.2136,3251.8,3251.2,0.00852635]
[1642396789990,4.2136,3251.8,3251.2,0.77739635]
[1642396790189,4.2136,3251.8,3251.2,18.75739635]
[1642396790389,0.95337444,3251.8,3251.3,0.00795793]
[1642396791393,1.16642367,3252.0,3251.3,0.00795793]
[1642396791593,1.1887,3252.1,3251.4,0.04893552]
[1642396791795,1.1887,3252.1,3251.6,0.76878]
[1642396791994,3.9258,3252.3,3251.7,7.48053482]
[1642396792194,3.9258,3252.3,3251.7,7.48621905]
[1642396792448,3.9258,3252.3,3251.8,0.00511581]
[1642396792649,4.68840873,3252.3,3251.8,0.00511581]
[1642396793547,0.01555561,3252.2,3251.8,0.00511581]
[1642396793749,3.9258,3252.3,3251.8,0.00511581]
[1642396793948,3.9258,3252.3,3251.9,0.02465539]
[1642396794349,3.9258,3252.3,3251.8,0.00511581]
[1642396795050,0.65139692,3252.1,3251.8,0.00511581]
[1642396795449,3.9258,3252.3,3251.7,6.98586681]
[1642396795849,3.9258,3252.3,3251.8,0.00511581]
[1642396796297,3.9258,3252.3,3251.9,0.76871]
[1642396796494,1.2396,3252.8,3252.0,7.36189442]
[1642396796892,1.2396,3252.8,3252.1,17.98341054]
[1642396796893,0.3,3252.8,3252.1,17.98341054]
[1642396797094,0.3,3252.9,3252.2,7.58646875]
[1642396797293,1.1649,3253.2,3252.3,19.39414744]
[1642396797492,1.1649,3253.2,3252.4,7.22333239]
[1642396797692,1.1649,3253.2,3252.4,7.22503766]
[1642396797892,1.1649,3253.2,3252.5,0.00113685]
[1642396798492,0.59059897,3252.9,3252.5,0.00113685]
[1642396799940,0.02726011,3252.8,3252.5,0.00113685]
[1642396800141,3.769,3253.3,3252.5,0.00113685]
[1642396800343,3.769,3253.3,3252.6,18.74853]
[1642396800541,3.769,3253.3,3252.6,20.10693]
[1642396800542,0.00284212,3253.2,3252.6,20.10693]
[1642396800743,0.00284212,3253.2,3252.7,1.0]
[1642396800953,0.0022737,3253.1,3252.8,17.98]
[1642396801345,0.00170527,3253.0,3252.8,17.98]
[1642396801543,0.00170527,3253.0,3252.9,35.81843]
[1642396801744,1.34941,3253.6,3252.9,53.79843]
[1642396801944,0.12301,3253.6,3252.9,53.79843]
[1642396802143,0.00454739,3253.5,3252.9,35.81843]
[1642396802345,0.00772095,3253.4,3252.9,35.81843]
[1642396802645,0.00341054,3253.3,3253.1,0.02227632]
[1642396802943,0.00284212,3253.2,3253.0,7.25223502]
[1642396803345,0.0022737,3253.1,3253.0,7.25223502]
[1642396803790,0.0022737,3253.1,3252.9,35.81843]
[1642396803990,0.0022737,3253.1,3253.0,35.05]
[1642396804189,0.12301,3253.6,3253.0,35.05]
[1642396804489,0.00397897,3253.4,3253.0,35.05]
[1642396804888,0.00341054,3253.3,3253.0,35.05]
[1642396805289,0.00284212,3253.2,3253.0,35.05]
[1642396805691,0.0022737,3253.1,3253.0,35.05]
[1642396813388,0.0022737,3253.1,3253.0,36.49210456]
[1642396813590,0.0022737,3253.1,3253.0,35.05]
[1642396814590,1.93547964,3253.1,3252.5,4.78513685]
[1642396814791,0.03629108,3253.0,3252.5,3.61723685]
[1642396815044,0.00170527,3253.0,3252.5,0.00113685]
[1642396815240,0.00113685,3252.9,3252.5,0.00113685]
[1642396815640,1.93320594,3253.1,3252.6,0.04343124]
[1642396815641,0.00170527,3253.0,3252.6,0.04343124]
[1642396815840,0.00170527,3253.0,3252.6,0.76854]
[1642396816042,0.00113685,3252.9,3252.7,0.04538375]
[1642396816240,0.00113685,3252.9,3252.6,0.76854]
[1642396816440,0.00170527,3253.0,3252.7,0.02736872]
[1642396816645,0.00170527,3253.0,3252.6,0.76854]
[1642396816841,0.00113685,3252.9,3252.6,18.74854]
[1642396818995,0.00113685,3252.9,3252.6,0.76854]
[1642396819203,0.00113685,3252.9,3252.7,41.86107313]
[1642396819204,0.01072327,3252.8,3252.7,41.86107313]
[1642396819394,0.00113685,3252.9,3252.7,41.86107313]
[1642396819594,0.00113685,3252.9,3252.8,59.73822073]
[1642396820598,0.00113685,3252.9,3252.8,41.75822073]
[1642396821397,0.00113685,3252.9,3252.8,35.0]
[1642396821996,1.61323955,3253.5,3252.9,20.35]
[1642396822444,0.00227369,3253.3,3252.9,20.35]
[1642396822844,0.00170527,3253.2,3252.9,20.35]
[1642396823247,0.02021802,3253.1,3252.9,20.35]
[1642396823447,0.00113685,3253.1,3252.9,20.35]
[1642396823746,0.00284212,3253.4,3253.0,0.01721583]
[1642396824146,0.01490955,3253.3,3252.9,20.35]
[1642396824567,0.00170527,3253.2,3252.9,20.35]
[1642396824946,0.00113685,3253.1,3252.9,20.35]
[1642396825348,0.00284212,3253.4,3252.9,20.35]
[1642396825552,0.00284212,3253.4,3253.0,0.02327569]
[1642396826589,0.00284212,3253.4,3252.9,20.35]
[1642396827792,0.00284212,3253.4,3253.0,0.04140938]
[1642396827992,0.00284212,3253.4,3252.9,20.35]
[1642396829398,0.00284212,3253.4,3253.0,7.02646477]
[1642396829699,0.00284212,3253.4,3252.9,20.38717629]
[1642396829957,0.00284212,3253.4,3252.9,20.35]
[1642396830357,0.00284212,3253.4,3253.1,1.14884143]
[1642396830561,0.00284212,3253.4,3253.2,0.01769559]
[1642396830760,0.00284212,3253.4,3253.1,2.08764143]
[1642396831361,0.02644936,3253.6,3253.3,0.05318569]
[1642396831761,0.02644936,3253.6,3253.3,6.85614025]
[1642396832259,0.02644936,3253.6,3253.3,6.80295456]
[1642396832460,0.02644936,3253.6,3253.2,35.00113685]
[1642396832760,0.03882773,3253.5,3253.2,35.00113685]
[1642396832961,0.03882773,3253.5,3253.2,0.00113685]
[1642396833167,1.31487805,3253.4,3253.2,0.00113685]
[1642396833362,1.31487805,3253.4,3252.7,3.0749]
[1642396833363,1.94521187,3253.4,3252.9,0.00284212]
[1642396833565,0.03882773,3253.3,3252.9,0.00284212]
[1642396833801,2.98921187,3253.4,3252.8,0.00341054]
[1642396833998,0.7687554,3253.2,3252.5,0.00511582]
[1642396834199,0.7687554,3253.2,3252.4,0.00568424]
[1642396834397,0.7687554,3253.2,3251.9,0.00852636]
[1642396834398,2.14605062,3252.7,3251.9,0.00852636]
[1642396834601,2.14605062,3252.7,3251.7,1.57030709]
[1642396834602,1.41945261,3252.7,3251.8,17.98909478]
[1642396834797,1.41945261,3252.7,3251.9,0.02924901]
[1642396834998,1.0,3253.1,3251.9,0.00852636]
[1642396835197,2.3687554,3253.2,3252.0,0.00795793]
[1642396835405,1.6,3253.2,3251.9,0.00852636]
[1642396835798,0.58893324,3252.8,3251.9,1.54574636]
[1642396836002,1.29298835,3253.0,3252.0,20.61281742]
[1642396836299,1.29298835,3253.0,3252.1,0.00738951]
[1642396836498,1.24298835,3253.0,3252.2,17.98]
[1642396836697,4.8587,3253.3,3252.2,17.98]
[1642396836898,4.8587,3253.3,3252.5,0.76855]
[1642396837104,0.75800209,3253.1,3252.5,0.76855]
[1642396837301,0.75800209,3253.1,3252.6,0.00454739]
[1642396838052,0.03070153,3253.0,3252.6,0.00454739]
[1642396838850,2.2897919,3253.1,3252.6,0.00454739]
[1642396839448,2.10381836,3252.6,3252.3,0.00625266]
[1642396839653,0.00863897,3252.5,3252.3,0.00625266]
[1642396839849,2.10381836,3252.6,3252.3,0.00625266]
[1642396840048,2.10381836,3252.6,3252.2,0.00682109]
[1642396840248,2.10381836,3252.6,3252.0,0.00795793]
[1642396840449,0.02927606,3252.5,3252.1,0.00738951]
[1642396840651,1.5023149,3252.6,3252.0,0.00795793]
[1642396840951,1.5023149,3252.6,3252.3,2.63273999]
[1642396841202,1.1844,3253.2,3252.3,2.63273999]
[1642396841396,4.1687,3253.3,3252.4,0.00568424]
[1642396841996,0.75140489,3253.2,3252.5,0.03143586]
[1642396842201,0.75140489,3253.2,3252.4,0.00568424]
[1642396842396,0.75140489,3253.2,3252.6,0.00454739]
[1642396842599,0.75140489,3253.2,3252.4,1.00568424]
[1642396842796,0.75140489,3253.2,3252.5,17.98]
[1642396842997,0.75140489,3253.2,3252.5,0.00511582]
[1642396843199,0.75140489,3253.2,3252.8,0.06697033]
[1642396843598,0.0120051,3253.1,3252.9,0.00284212]
[1642396843799,0.75140489,3253.2,3252.9,0.00284212]
[1642396844297,0.75140489,3253.2,3253.0,0.02184694]
[1642396844703,0.75140489,3253.2,3253.1,0.00170527]
[1642396845143,0.75140489,3253.2,3252.9,0.00284212]
[1642396845545,0.75140489,3253.2,3253.0,0.02061901]
[1642396845745,0.75140489,3253.2,3252.9,0.00284212]
[1642396848245,0.45437358,3253.5,3252.9,0.00284212]
[1642396848444,0.45437358,3253.5,3252.9,1.08934212]
[1642396848710,0.02644936,3253.6,3252.9,1.08934212]
[1642396849003,0.02644936,3253.6,3253.0,0.0022737]
[1642396849602,0.02644936,3253.6,3253.1,0.01433447]
[1642396849806,0.03356665,3253.5,3253.0,0.0022737]
[1642396850004,0.02644936,3253.6,3253.2,0.00113685]
[1642396850204,0.02644936,3253.6,3253.1,0.0244404]
[1642396850405,0.02644936,3253.6,3253.0,0.0022737]
[1642396850604,0.02644936,3253.6,3253.2,0.00113685]
[1642396850904,0.02644936,3253.6,3253.0,0.0022737]
[1642396851206,0.01668194,3253.5,3253.0,0.0022737]
[1642396851404,0.02644936,3253.6,3253.1,0.05106891]
[1642396851705,0.02644936,3253.6,3253.2,0.00113685]
[1642396851905,1.51564833,3253.6,3253.2,0.00113685]
[1642396852107,1.51564833,3253.6,3253.0,2.63238637]
[1642396852108,1.51564833,3253.6,3253.1,0.00170527]
[1642396852743,1.81564833,3253.6,3252.9,0.00284212]
[1642396853147,1.81564833,3253.6,3252.9,2.63526624]
[1642396853344,1.81564833,3253.6,3253.0,0.03412125]
[1642396853549,0.76793287,3253.3,3253.0,0.0022737]
[1642396853746,0.76793287,3253.3,3253.1,0.00170527]
[1642396853944,0.76793287,3253.3,3253.0,0.0022737]
[1642396855144,0.76793287,3253.3,3252.9,0.00284212]
[1642396855648,0.03882773,3253.2,3252.9,0.00284212]
[1642396855850,6.76783913,3253.2,3252.9,0.00284212]
[1642396856046,6.78178864,3253.2,3252.9,0.00284212]
[1642396856301,0.76793287,3253.3,3252.9,0.00284212]
[1642396856898,6.72635084,3253.2,3252.9,0.00284212]
[1642396857096,1.53810316,3253.1,3252.9,0.00284212]
[1642396861945,1.83810316,3253.1,3252.9,0.00284212]
[1642396862949,18.42469635,3253.0,3252.9,0.00284212]
[1642396863149,6.92469635,3253.0,3252.9,0.00284212]
[1642396863349,6.7723028,3253.0,3252.9,0.00284212]
[1642396863548,3.05084416,3253.1,3252.9,0.00284212]
[1642396863796,3.35084416,3253.1,3252.9,0.00284212]
[1642396864195,2.75084416,3253.1,3252.9,0.00284212]
[1642396864402,6.78215111,3253.0,3252.9,0.00284212]
[1642396864596,2.75084416,3253.1,3252.9,0.00284212]
[1642396865396,2.75084416,3253.1,3252.9,0.04042237]
[1642396865597,2.75084416,3253.1,3252.9,0.00284212]
[1642396865796,2.75084416,3253.1,3253.0,0.0022737]
[1642396865996,0.03158873,3253.0,3252.9,0.00284212]
[1642396866396,2.75084416,3253.1,3252.9,0.00284212]
[1642396866998,1.98210316,3253.1,3252.9,0.00284212]
[1642396868346,1.92263287,3253.3,3252.9,0.00284212]
[1642396868547,2.22263287,3253.3,3252.9,0.00284212]
[1642396868744,1.1547,3253.3,3252.9,0.00284212]
[1642396868946,0.02644936,3253.6,3252.9,0.00284212]
[1642396869345,1.35838096,3253.5,3252.9,0.00284212]
[1642396869747,1.94791112,3253.5,3252.9,0.00284212]
[1642396870148,0.00329962,3253.4,3252.9,0.00284212]
[1642396870748,1.94791112,3253.5,3252.9,0.00284212]
[1642396871202,1.28895327,3253.0,3252.9,0.00284212]
[1642396871395,1.28895327,3253.0,3252.9,20.60284212]
[1642396872397,1.28895327,3253.0,3252.9,27.50284212]
[1642396873799,0.58953016,3253.5,3252.9,27.50284212]
[1642396873999,0.58953016,3253.5,3253.0,0.0378747]
[1642396874298,0.58953016,3253.5,3253.1,0.00170527]
[1642396874701,0.58953016,3253.5,3253.0,0.0022737]
[1642396875146,1.10942059,3253.1,3253.0,0.0022737]
[1642396875345,1.10942059,3253.1,3253.0,16.8022737]
[1642396876547,0.58953016,3253.5,3253.1,0.03893204]
[1642396876750,0.58953016,3253.5,3253.0,16.8022737]
[1642396876948,0.58953016,3253.5,3253.2,0.00113685]
[1642396877148,0.58953016,3253.5,3253.1,0.00170527]
[1642396877549,1.18759848,3253.2,3253.1,0.00170527]
[1642396878154,1.18759848,3253.2,3252.9,0.00284212]
[1642396878352,0.02803671,3253.1,3252.9,0.00284212]
[1642396878550,1.18759848,3253.2,3252.9,0.00284212]
[1642396878791,0.01995111,3253.1,3252.9,0.00284212]
[1642396878993,0.62701963,3253.0,3252.9,0.00284212]
[1642396879389,0.62701963,3253.0,3252.9,15.10284212]
[1642396882448,1.18759848,3253.2,3252.9,15.10284212]
[1642396882850,1.18759848,3253.2,3253.0,0.0022737]
[1642396883452,0.02644936,3253.6,3253.0,0.0022737]
[1642396883650,0.62585485,3253.5,3253.0,0.0022737]
[1642396883850,0.02644936,3253.6,3253.0,0.0022737]
[1642396884852,1.50809827,3253.6,3253.0,0.0022737]
[1642396885051,2.50809827,3253.6,3253.0,0.0022737]
[1642396885652,2.50809827,3253.6,3253.1,0.02411562]
[1642396885854,2.50809827,3253.6,3253.0,0.0022737]
[1642396886395,0.7686741,3253.4,3253.0,0.0022737]
[1642396886996,0.59493464,3253.2,3253.0,0.0022737]
[1642396887197,1.4519647,3253.1,3253.0,12.4522737]
[1642396887598,1.7519647,3253.1,3253.0,12.4522737]
[1642396892653,2.34735081,3253.1,3253.0,12.4522737]
[1642396893053,0.3,3253.1,3253.0,12.4522737]
[1642396893255,0.7686741,3253.4,3253.0,12.4522737]
[1642396893555,1.0686741,3253.4,3253.1,0.00170527]
[1642396893800,0.7686741,3253.4,3253.1,0.00170527]
[1642396895000,0.76332307,3253.3,3253.1,0.00170527]
[1642396895206,0.75272084,3253.3,3253.1,0.00170527]
[1642396895402,1.0686741,3253.4,3253.1,0.00170527]
[1642396895602,0.7686741,3253.4,3253.1,0.00170527]
[1642396896208,1.0686741,3253.4,3253.1,0.00170527]
[1642396896901,0.7075936,3253.2,3253.1,0.00170527]
[1642396897102,0.7075936,3253.2,3253.1,10.35170527]
[1642396897103,1.35371741,3253.2,3253.1,10.35170527]
[1642396897303,0.7686741,3253.4,3253.1,10.35170527]
[1642396897746,1.0686741,3253.4,3253.2,0.00113685]
[1642396898345,0.3,3253.4,3253.2,0.00113685]
[1642396898845,1.82099197,3253.5,3253.2,0.00113685]
[1642396900046,0.02839194,3253.4,3253.2,0.00113685]
[1642396900246,1.82099197,3253.5,3253.2,0.00113685]
[1642396901397,0.3,3253.5,3253.3,0.04001934]
[1642396901605,0.02644936,3253.6,3253.2,0.36803685]
[1642396902198,0.02644936,3253.6,3253.2,0.00113685]
[1642396903700,0.02644936,3253.6,3253.3,0.01635018]
[1642396904000,0.02644936,3253.6,3253.2,2.63342611]
[1642396904403,0.03882773,3253.5,3253.2,2.63342611]
[1642396904602,0.02644936,3253.6,3253.2,2.63342611]
[1642396904802,0.02644936,3253.6,3253.3,0.01839081]
[1642396905054,0.02644936,3253.6,3253.2,0.00113685]
[1642396905451,0.00459734,3253.5,3253.2,0.00113685]
[1642396905651,0.02644936,3253.6,3253.2,0.00113685]
[1642396906062,0.02644936,3253.6,3253.2,2.63334686]
[1642396906756,0.02644936,3253.6,3253.2,4.17189854]
[1642396907654,0.02644936,3253.6,3253.3,2.63221001]
[1642396908253,0.02644936,3253.6,3253.3,3.40055001]
[1642396908454,0.02644936,3253.6,3253.3,3.84265001]
[1642396909496,0.02644936,3253.6,3253.4,9.43904189]
[1642396909697,0.02644936,3253.6,3253.4,10.25699437]
[1642396909897,0.02644936,3253.6,3253.5,6.65723975]
[1642396910097,0.02644936,3253.6,3253.4,3.45071001]
[1642396910295,0.0275862,3253.6,3253.4,3.45071001]
[1642396910496,0.0275862,3253.6,3253.5,41.50824257]
[1642396910896,0.0275862,3253.6,3253.5,34.85]
[1642396912300,0.03882773,3253.5,3253.2,1.13623685]
[1642396913252,0.0275862,3253.6,3253.2,1.13623685]
[1642396913951,0.0089319,3253.5,3253.2,1.13623685]
[1642396914351,0.0275862,3253.6,3253.2,1.13623685]
[1642396914753,0.0275862,3253.6,3253.3,0.01872226]
[1642396914954,0.0275862,3253.6,3253.2,1.13623685]
[1642396915357,0.01670486,3253.5,3253.2,1.13623685]
[1642396915552,0.0275862,3253.6,3253.2,1.13623685]
[1642396915752,0.02943432,3253.5,3253.2,1.13623685]
[1642396916601,0.02943432,3253.5,3253.2,0.00113685]
[1642396916901,0.78886179,3253.5,3253.2,0.00113685]
[1642396917203,0.78189979,3253.5,3253.0,0.0022737]
[1642396917601,1.42871592,3253.4,3253.0,0.0022737]
[1642396918401,0.03678436,3253.3,3253.0,0.0022737]
[1642396918604,1.42871592,3253.4,3253.0,0.0022737]
[1642396918802,1.42871592,3253.4,3252.9,0.00284212]
[1642396919003,1.42871592,3253.4,3253.0,0.02603363]
[1642396919203,1.42871592,3253.4,3252.9,0.00284212]
[1642396919706,0.78189979,3253.5,3252.9,0.00284212]
[1642396919949,1.08189979,3253.5,3253.0,0.01190666]
[1642396920152,1.08189979,3253.5,3252.9,0.00284212]
[1642396920352,1.08189979,3253.5,3253.1,0.00170527]
[1642396920651,0.0041606,3253.4,3252.9,0.00284212]
[1642396921052,1.08189979,3253.5,3252.9,0.00284212]
[1642396921255,1.33344958,3253.4,3252.9,0.00284212]
[1642396921852,1.08189979,3253.5,3253.0,0.01025002]
[1642396922151,0.3,3253.5,3253.1,0.00170527]
[1642396922553,0.0275862,3253.6,3252.9,0.00284212]
[1642396922952,1.23838244,3253.2,3252.9,0.00284212]
[1642396923353,0.02014837,3253.1,3252.9,0.00284212]
[1642396923553,0.6187408,3253.3,3252.9,0.00284212]
[1642396923800,0.0275862,3253.6,3252.9,0.00284212]
[1642396924300,0.0275862,3253.6,3253.0,0.03717261]
[1642396924497,1.46113426,3253.6,3252.9,0.00284212]
[1642396924697,1.46113426,3253.6,3253.1,0.00170527]
[1642396924903,2.22601668,3253.6,3252.9,0.00284212]
[1642396925398,0.79246862,3253.6,3252.9,0.00284212]
[1642396926100,1.56111662,3253.6,3252.9,0.00284212]
[1642396926501,0.3,3253.5,3252.9,0.00284212]
[1642396926900,1.56111662,3253.6,3252.9,0.00284212]
[1642396927102,0.76079162,3253.5,3252.9,0.00284212]
[1642396927454,0.744,3253.5,3252.9,0.00284212]
[1642396927851,1.09783712,3253.2,3252.9,0.00284212]
[1642396928655,0.444,3253.3,3252.9,0.00284212]
[1642396928851,1.3,3253.5,3252.9,0.00284212]
[1642396929050,0.3,3253.5,3252.9,0.00284212]
[1642396929251,0.0275862,3253.6,3252.9,0.00284212]
[1642396930857,0.02678345,3253.5,3252.9,0.00284212]
[1642396931053,0.0275862,3253.6,3252.9,0.00284212]
[1642396935554,0.7686835,3253.5,3252.9,0.00284212]
[1642396935951,0.3,3253.4,3252.9,0.00284212]
[1642396936751,0.73171209,3253.1,3252.9,0.00284212]
[1642396936951,0.3,3253.4,3252.9,0.00284212]
[1642396937956,0.3275862,3253.6,3252.9,0.00284212]
[1642396938153,0.0275862,3253.6,3252.9,0.00284212]
[1642396939912,0.444,3253.5,3252.9,0.00284212]
[1642396942749,0.32644936,3253.6,3252.9,0.00284212]
[1642396942951,0.02644936,3253.6,3252.9,0.00284212]
[1642396944654,0.00574239,3253.5,3252.9,0.00284212]
[1642396944853,0.02644936,3253.6,3252.9,0.00284212]
[1642396945659,1.02644936,3253.6,3252.9,0.00284212]
[1642396946215,0.02644936,3253.6,3252.9,0.00284212]
[1642396947418,0.03882773,3253.5,3252.9,0.00284212]
[1642396947617,0.02644936,3253.6,3252.9,0.00284212]
[1642396948018,0.55207548,3253.5,3252.9,0.00284212]
[1642396949118,0.02644936,3253.6,3253.0,0.02508429]
[1642396949318,0.02644936,3253.6,3252.9,0.00284212]
[1642396949518,0.02644936,3253.6,3253.1,0.00170527]
[1642396949718,0.02644936,3253.6,3252.9,0.00284212]
[1642396950563,0.03882773,3253.5,3252.9,0.00284212]
[1642396950763,0.61538978,3253.5,3253.0,0.04403318]
[1642396950967,0.61538978,3253.5,3252.9,2.93539009]